fUSD/lending_fUSD_20241206
["ID","MTS","AMOUNT","RATE_DAILY","PERIOD"]
[344467563,1733502637998,-3007.5626916,8.063e-05,2]
[344467564,1733502638007,-150.0,8.071e-05,2]
[344467565,1733502638017,-659.62,8.107e-05,2]
[344467566,1733502638026,-250.0,8.192e-05,2]
[344467567,1733502638035,-731.81,8.192e-05,2]
[344467568,1733502638044,-374.84075025,8.219e-05,2]
[344467569,1733502638056,-124.67924975,8.219e-05,2]
[344467570,1733502638074,-503.14,8.219e-05,2]
[344467571,1733502638098,-497.3,8.219e-05,2]
[344467572,1733502638110,-2992.85,8.219e-05,2]
[344467573,1733502638120,-1000.0,8.219e-05,2]
[344467574,1733502638130,-1395.0,8.301e-05,2]
[344467575,1733502638139,-1304.18599253,8.301e-05,2]
[344467576,1733502638152,-87.81400747,8.301e-05,2]
[344467577,1733502638161,-1392.0,8.301e-05,2]
[344467578,1733502638171,-1392.0,8.301e-05,2]
[344467579,1733502638180,-731.81,8.495e-05,2]
[344467580,1733502638190,-150.0,8.627e-05,2]
[344467581,1733502638199,-508.11803994,8.628e-05,2]
[344467582,1733502638211,-307.88196006,8.628e-05,2]
[344467583,1733502638222,-217.06930091,8.628e-05,2]
[344467584,1733502638238,-1034.93069909,8.628e-05,2]
[344467585,1733502638247,-3761.0,8.628e-05,2]
[344467586,1733502638257,-535.0,8.628e-05,2]
[344467587,1733502638265,-151.0,8.628e-05,2]
[344467588,1733502638275,-150.0,8.628e-05,2]
[344467589,1733502638284,-758.464,8.628e-05,2]
[344467590,1733502638294,-2066.478,8.628e-05,2]
[344467591,1733502638303,-477.13,8.721e-05,2]
[344467592,1733502638315,-731.81,8.798e-05,2]
[344467593,1733502638326,-1600.0,8.815e-05,2]
[344467594,1733502638335,-150.99,8.864e-05,2]
[344467595,1733502638347,-420.0,8.868e-05,2]
[344467596,1733502638359,-153.92,9.044e-05,2]
[344467597,1733502638368,-731.81,9.101e-05,2]
[344467598,1733502638377,-657.887,9.11e-05,2]
[344467599,1733502638386,-1752.307,9.111e-05,2]
[344467600,1733502638396,-659.62,9.12e-05,2]
[344467601,1733502638406,-200.0,9.126e-05,2]
[344467602,1733502638415,-1600.0,9.13e-05,2]
[344467603,1733502638425,-1000.0,9.247e-05,2]
[344467604,1733502638435,-36634.7114,9.388e-05,2]
[344467605,1733502638444,-600.0,9.4e-05,3]
[344467606,1733502638453,-731.81,9.404e-05,2]
[344467607,1733502638463,-1600.0,9.444e-05,2]
[344467608,1733502638473,-300.0,9.481e-05,2]
[344467610,1733502638482,-11468.7362,9.488e-05,2]
[344467611,1733502638491,-2500.0,9.488e-05,2]
[344467613,1733502638500,-2500.0,9.489e-05,2]
[344467614,1733502638510,-24723.61735135,9.5e-05,2]
[344467615,1733502638533,-2394.18005762,9.5e-05,2]
[344467616,1733502638542,-251.6184148,9.5e-05,2]
[344467617,1733502638551,-1200.0,9.5e-05,3]
[344467618,1733502638562,-500.0,9.541e-05,2]
[344467619,1733502638571,-500.0,9.541e-05,2]
[344467620,1733502638580,-500.0,9.541e-05,2]
[344467621,1733502638590,-330.6347,9.541e-05,2]
[344467622,1733502638603,-1000.0,9.541e-05,2]
[344467623,1733502638612,-1000.0,9.541e-05,2]
[344467624,1733502638622,-287.9735,9.541e-05,2]
[344467625,1733502638631,-13250.94260658,9.588e-05,2]
[344467626,1733502638643,-274.176,9.588e-05,2]
[344467627,1733502638657,-381.88059442,9.588e-05,2]
[344467628,1733502638668,-67178.0,9.588e-05,2]
[344467636,1733502640061,-496.207605,9.588e-05,2]
[344467637,1733502640073,-8806.51085345,9.588e-05,2]
[344467638,1733502640151,-11980.59999999,9.588e-05,2]
[344467642,1733502640694,-8143.7013914,9.588e-05,2]
[344467643,1733502640726,-281.0,9.588e-05,2]
[344467644,1733502640753,-2948.0,9.588e-05,2]
[344467647,1733502642805,-296.07967295,8.149e-05,2]
[344467648,1733502642886,-1703.92032705,8.149e-05,2]
[344467649,1733502642896,-2000.0,8.451e-05,2]
[344467650,1733502642906,-2000.0,8.752e-05,2]
[344467651,1733502642915,-2000.0,9.054e-05,2]
[344467652,1733502642924,-28188.90928952,9.588e-05,2]
[344467653,1733502642936,-31516.25581685,9.588e-05,2]
[344467654,1733502642947,-12551.49995,9.588e-05,2]
[344467655,1733502642973,-275.21500009,9.588e-05,2]
[344467656,1733502643000,-1100.0,9.588e-05,2]
[344467657,1733502643012,-719.25,9.588e-05,2]
[344467658,1733502643039,-5169.09077954,9.588e-05,2]
[344467659,1733502643051,-3604.59971213,9.588e-05,2]
[344467660,1733502643062,-11656.3343447,9.588e-05,2]
[344467662,1733502643142,-740.40763562,9.588e-05,2]
[344467663,1733502643153,-2995.92674559,9.588e-05,2]
[344467664,1733502643164,-21560.74793675,9.588e-05,2]
[344467666,1733502643174,-2000.0,9.588e-05,2]
[344467667,1733502643183,-816.39,9.588e-05,2]
[344467668,1733502643192,-540.0,9.588e-05,2]
[344467669,1733502643201,-8951.0,9.589e-05,2]
[344467670,1733502643211,-507.74,9.589e-05,2]
[344467671,1733502643220,-23520.66836431,9.589e-05,2]
[344467674,1733502645717,-2000.0,9.355e-05,2]
[344467675,1733502645727,-19252.97602035,9.589e-05,2]
[344467676,1733502646405,-7433.9,9.589e-05,2]
[344467677,1733502646418,-956.5536,9.589e-05,2]
[344467678,1733502646431,-68913.94958678,9.589e-05,2]
[344467680,1733502647171,-490.07,7.878e-05,2]
[344467681,1733502647182,-7.22675696,9.589e-05,2]
[344467682,1733502647203,-110289.13803437,9.589e-05,2]
[344467683,1733502647215,-1566.95093932,9.589e-05,2]
[344467684,1733502647227,-28800.0,9.589e-05,2]
[344467685,1733502647255,-95737.22962711,9.589e-05,2]
[344467743,1733503831954,-950.94,7.486e-05,2]
[344467744,1733503832071,-1049.06,7.486e-05,2]
[344467745,1733503832081,-250.0,7.491e-05,2]
[344467746,1733503832090,-457.63,7.493e-05,2]
[344467747,1733503832100,-3226.84,7.503e-05,2]
[344467748,1733503832109,-352.24,7.622e-05,2]
[344467749,1733503832118,-250.0,7.624e-05,2]
[344467750,1733503832128,-200.0,7.678e-05,2]
[344467751,1733503832138,-1461.99736393,7.678e-05,2]
[344467752,1733503832149,-200.0,7.678e-05,2]
[344467753,1733503832158,-1949.32981857,7.679e-05,2]
[344467754,1733503832168,-1461.99736393,7.68e-05,2]
[344467755,1733503832177,-200.0,7.681e-05,2]
[344467756,1733503832187,-4620.63364401,7.681e-05,2]
[344467757,1733503832198,-2599.10642476,7.681e-05,2]
[344467758,1733503832208,-200.0,7.681e-05,2]
[344467759,1733503832217,-3465.47523301,7.682e-05,2]
[344467760,1733503832227,-2599.10642476,7.682e-05,2]
[344467761,1733503832236,-1949.32981857,7.682e-05,2]
[344467762,1733503832246,-4620.63364401,7.684e-05,2]
[344467763,1733503832255,-4620.63364401,7.685e-05,2]
[344467764,1733503832266,-2599.10642476,7.686e-05,2]
[344467765,1733503832277,-200.0,7.686e-05,2]
[344467766,1733503832291,-1949.32981857,7.688e-05,2]
[344467767,1733503832302,-200.0,7.688e-05,2]
[344467768,1733503832312,-200.0,7.688e-05,2]
[344467769,1733503832321,-200.0,7.689e-05,2]
[344467770,1733503832332,-1949.32981857,7.69e-05,2]
[344467771,1733503832342,-1172.2000841,7.69e-05,2]
[344467772,1733503832388,-289.79727983,7.69e-05,2]
[344467773,1733503832398,-6160.84485868,7.69e-05,2]
[344467774,1733503832407,-6160.84485868,7.692e-05,2]
[344467775,1733503832417,-3465.47523301,7.692e-05,2]
[344467776,1733503832426,-200.0,7.692e-05,2]
[344467777,1733503832435,-3465.47523301,7.692e-05,2]
[344467778,1733503832446,-4620.63364401,7.693e-05,2]
[344467779,1733503832456,-6160.84485868,7.693e-05,2]
[344467780,1733503832466,-3465.47523301,7.693e-05,2]
[344467781,1733503832476,-1461.99736393,7.695e-05,2]
[344467782,1733503832485,-2599.10642476,7.695e-05,2]
[344467783,1733503832495,-2599.10642476,7.695e-05,2]
[344467784,1733503832504,-6160.84485868,7.695e-05,2]
[344467785,1733503832514,-1949.32981857,7.697e-05,2]
[344467786,1733503832523,-3465.47523301,7.697e-05,2]
[344467787,1733503832533,-1949.32981857,7.697e-05,2]
[344467788,1733503832543,-3465.47523301,7.697e-05,2]
[344467789,1733503832553,-6160.84485868,7.697e-05,2]
[344467790,1733503832563,-200.0,7.697e-05,2]
[344467791,1733503832573,-4620.63364401,7.698e-05,2]
[344467792,1733503832583,-200.0,7.698e-05,2]
[344467793,1733503832593,-200.0,7.698e-05,2]
[344467794,1733503832602,-6160.84485868,7.699e-05,2]
[344467795,1733503832612,-1461.99736393,7.699e-05,2]
[344467796,1733503832622,-4620.63364401,7.699e-05,2]
[344467797,1733503832631,-2599.10642476,7.7e-05,2]
[344467798,1733503832641,-1461.99736393,7.7e-05,2]
[344467799,1733503832650,-1002.7503,7.878e-05,2]
[344467800,1733503832660,-150.0,7.945e-05,2]
[344467801,1733503832671,-150.0,7.977e-05,2]
[344467802,1733503832680,-300.0,7.977e-05,2]
[344467803,1733503832690,-59068.77486874,7.978e-05,5]
[344467804,1733503832702,-495.21,7.978e-05,2]
[344467805,1733503832711,-499.06,7.978e-05,2]
[344467806,1733503832722,-507.68,7.978e-05,2]
[344467807,1733503832731,-503.32,7.978e-05,2]
[344467808,1733503832740,-490.12,7.983e-05,2]
[344467809,1733503832751,-507.19,7.986e-05,2]
[344467810,1733503832760,-498.44,7.99e-05,2]
[344467811,1733503832769,-506.09,7.996e-05,2]
[344467812,1733503832779,-504.26,8.005e-05,2]
[344467813,1733503832788,-498.44,8.019e-05,2]
[344467814,1733503832798,-509.6,8.039e-05,2]
[344467815,1733503832807,-504.36,8.091e-05,2]
[344467816,1733503832816,-492.19,8.091e-05,2]
[344467817,1733503832825,-500.98,8.091e-05,2]
[344467818,1733503832834,-493.84,8.091e-05,2]
[344467819,1733503832844,-495.45,8.091e-05,2]
[344467820,1733503832853,-491.66,8.091e-05,2]
[344467821,1733503832862,-504.62,8.091e-05,2]
[344467822,1733503832871,-508.17,8.091e-05,2]
[344467823,1733503832880,-497.93,8.091e-05,2]
[344467824,1733503832889,-493.31,8.091e-05,2]
[344467825,1733503832898,-499.39,8.091e-05,2]
[344467826,1733503832907,-495.5,8.092e-05,2]
[344467827,1733503832916,-491.65,8.092e-05,2]
[344467828,1733503832926,-491.92,8.092e-05,2]
[344467829,1733503832935,-491.26,8.092e-05,2]
[344467830,1733503832944,-490.0,8.092e-05,2]
[344467831,1733503832953,-493.04,8.092e-05,2]
[344467832,1733503832962,-499.46,8.092e-05,2]
[344467833,1733503832971,-499.7,8.092e-05,2]
[344467834,1733503832980,-499.98,8.092e-05,2]
[344467835,1733503832989,-498.95,8.092e-05,2]
[344467836,1733503832999,-503.4,8.092e-05,2]
[344467837,1733503833008,-150.0,8.157e-05,2]
[344467838,1733503833017,-13592.0,8.173e-05,2]
[344467839,1733503833027,-13587.0,8.173e-05,2]
[344467840,1733503833036,-13587.0,8.173e-05,2]
[344467841,1733503833045,-13587.0,8.173e-05,2]
[344467842,1733503833055,-13587.0,8.173e-05,2]
[344467843,1733503833064,-13587.0,8.173e-05,2]
[344467844,1733503833073,-13587.0,8.173e-05,2]
[344467845,1733503833082,-13587.0,8.173e-05,2]
[344467846,1733503833091,-164.00709713,8.173e-05,2]
[344467847,1733503833100,-1000.0,8.219e-05,2]
[344467848,1733503833109,-2843.2,8.219e-05,2]
[344467849,1733503833118,-1040.0,8.34e-05,2]
[344467850,1733503833127,-1600.0,8.34e-05,2]
[344467851,1733503833136,-757.81,8.423e-05,2]
[344467852,1733503833145,-457.63,8.43e-05,2]
[344467853,1733503833154,-153.92,8.576e-05,2]
[344467854,1733503833163,-1040.0,8.649e-05,2]
[344467855,1733503833172,-1600.0,8.649e-05,2]
[344467856,1733503833181,-1000.0,8.728e-05,2]
[344467857,1733503833190,-2500.0,8.728e-05,2]
[344467858,1733503833201,-200.0,8.74e-05,2]
[344467859,1733503833210,-420.0,8.774e-05,2]
[344467860,1733503833219,-497.66,8.828e-05,2]
[344467861,1733503833229,-798.085,8.829e-05,2]
[344467862,1733503833238,-3761.0,8.829e-05,2]
[344467863,1733503833247,-742.818,8.829e-05,2]
[344467864,1733503833256,-150.0,8.829e-05,2]
[344467865,1733503833266,-253.502,8.829e-05,2]
[344467866,1733503833276,-700.0,8.9e-05,3]
[344467867,1733503833285,-1040.0,8.957e-05,2]
[344467868,1733503833294,-1600.0,8.957e-05,2]
[344467869,1733503833305,-1500.0,9e-05,3]
[344467870,1733503833314,-166.66,9.035e-05,2]
[344467871,1733503833323,-630.425,9.11e-05,2]
[344467872,1733503833333,-2357.0,9.125e-05,2]
[344467873,1733503833342,-1401.845,9.132e-05,2]
[344467874,1733503833351,-150.0,9.239e-05,2]
[344467875,1733503833361,-1000.0,9.247e-05,2]
[344467876,1733503833370,-1040.0,9.266e-05,2]
[344467877,1733503833379,-1600.0,9.266e-05,2]
[344467878,1733503833389,-457.63,9.366e-05,2]
[344467879,1733503833399,-500.74,9.388e-05,2]
[344467880,1733503833408,-24654.7846,9.388e-05,2]
[344467881,1733503833417,-3149.99999977,9.389e-05,2]
[344467882,1733503833427,-364.16,9.45e-05,2]
[344467883,1733503833436,-728.32,9.45e-05,2]
[344467884,1733503833447,-364.16,9.45e-05,2]
[344467885,1733503833456,-364.16,9.45e-05,2]
[344467886,1733503833466,-364.16,9.45e-05,2]
[344467887,1733503833475,-364.16,9.45e-05,2]
[344467888,1733503833485,-364.16,9.45e-05,2]
[344467889,1733503833495,-364.16,9.45e-05,2]
[344467890,1733503833504,-158.4028308,9.473e-05,2]
[344467891,1733503833514,-500.0,9.473e-05,2]
[344467892,1733503833523,-757.81,9.476e-05,2]
[344467893,1733503833533,-1296.1659,9.488e-05,2]
[344467894,1733503833543,-798.309,9.488e-05,2]
[344467895,1733503833553,-13044.3706,9.488e-05,2]
[344467896,1733503833562,-9992.7293,9.488e-05,2]
[344467897,1733503833571,-1829.52725787,9.488e-05,2]
[344467898,1733503833580,-67856.316,9.489e-05,2]
[344467899,1733503833590,-4122.65,9.489e-05,2]
[344467900,1733503833599,-2500.0,9.489e-05,2]
[344467901,1733503833608,-88286.32845623,9.499e-05,2]
[344467902,1733503833617,-7935.91904806,9.499e-05,2]
[344467903,1733503833631,-80350.40940817,9.499e-05,2]
[344467904,1733503833640,-88286.32845623,9.499e-05,2]
[344467905,1733503833649,-73628.96133777,9.499e-05,2]
[344467909,1733503834438,-1873.29249954,9.499e-05,2]
[344467910,1733503834452,-403.00947286,9.499e-05,2]
[344467911,1733503834463,-353.999985,9.499e-05,2]
[344467912,1733503834475,-2094.7,9.499e-05,2]
[344467913,1733503834511,-9932.36516106,9.499e-05,2]
[344467915,1733503834521,-35972.63483601,9.499e-05,2]
[344467916,1733503834533,-52313.69362022,9.499e-05,2]
[344467917,1733503834542,-20912.66501479,9.499e-05,2]
[344467918,1733503834554,-67373.66344144,9.499e-05,2]
[344467919,1733503834563,-88286.32845623,9.499e-05,2]
[344467921,1733503834573,-2300.0,9.5e-05,3]
[344467922,1733503834583,-1040.0,9.575e-05,2]
[344467924,1733503834592,-1600.0,9.575e-05,2]
[344467926,1733503834602,-63487.78296505,9.58e-05,2]
[344468000,1733503838076,-526.184,8.64e-05,2]
[344468001,1733503838087,-1973.816,8.64e-05,2]
[344468002,1733503838097,-1588.72632019,9.389e-05,2]
[344468003,1733503838106,-8442.75438674,9.58e-05,2]
[344468004,1733503838117,-2856.34561188,9.58e-05,2]
[344468005,1733503838128,-4068.84502196,9.58e-05,2]
[344468006,1733503838139,-5686.42631785,9.58e-05,2]
[344468007,1733503838151,-27649.37097707,9.58e-05,2]
[344468008,1733503838184,-2667.99056162,9.58e-05,2]
[344468009,1733503838212,-608.22526621,9.58e-05,2]
[344468010,1733503838223,-1842.63274704,9.58e-05,2]
[344468011,1733503838232,-83915.78192093,9.58e-05,2]
[344468012,1733503838241,-117688.66833203,9.58e-05,2]
[344468013,1733503838251,-2000.0,9.588e-05,2]
[344468014,1733503838260,-684.58,9.588e-05,2]
[344468015,1733503838270,-6139.84149698,9.588e-05,2]
[344468016,1733503838279,-165.59749044,9.588e-05,2]
[344468017,1733503838288,-6139.84149698,9.589e-05,2]
[344468018,1733503838298,-22830.23717592,9.589e-05,2]
[344468019,1733503838318,-268.2693,9.589e-05,2]
[344468020,1733503838341,-411.47791505,9.589e-05,2]
[344468029,1733503840068,-12886.23612776,9.589e-05,2]
[344468030,1733503840111,-1036.53520628,9.589e-05,2]
[344468041,1733503842968,-2789.8222,8.073e-05,2]
[344468042,1733503842977,-212.0428,9.589e-05,2]
[344468043,1733503842989,-496.33070717,9.589e-05,2]
[344468044,1733503843026,-18848.34193084,9.589e-05,2]
[344468045,1733503843037,-9967.77919182,9.589e-05,2]
[344468046,1733503843048,-32785.41583638,9.589e-05,2]
[344468047,1733503843061,-2445.1631479,9.589e-05,2]
[344468048,1733503843071,-13510.70388293,9.589e-05,2]
[344468049,1733503843082,-7639.15283323,9.589e-05,2]
[344468050,1733503843118,-551.89812493,9.589e-05,2]
[344468051,1733503843142,-9041.34000124,9.589e-05,2]
[344468052,1733503843153,-39958.9510345,9.589e-05,2]
[344468053,1733503843202,-1343.58,9.589e-05,2]
[344468054,1733503843214,-747.684,9.589e-05,2]
[344468055,1733503843225,-2790.91300994,9.589e-05,2]
[344468056,1733503843235,-88980.57899437,9.589e-05,2]
[344468057,1733503843247,-58170.91054054,9.589e-05,2]
[344468059,1733503843258,-31521.0,9.589e-05,2]
[344468076,1733503845841,-3149.99999977,9.589e-05,2]
[344468077,1733503845902,-557.45229243,9.589e-05,2]
[344468078,1733503846066,-3789.0,9.589e-05,2]
[344468079,1733503846078,-8616.3872519,9.589e-05,2]
[344468080,1733503846124,-467807.44797859,9.589e-05,2]
[344468081,1733503846135,-376.75212113,9.589e-05,2]
[344468082,1733503846147,-4837.7812795,9.589e-05,2]
[344468083,1733504044945,5655626.95009485,0.0002,120]
[344468085,1733504249602,3000.0,5.01e-05,2]
[344468086,1733504306764,1000.0,9.02e-05,10]
[344468087,1733504309486,161364.28,0.0002,120]
[344468088,1733504530469,86724.48849619,0.0002,120]
[344468092,1733504832216,350.6,5.011e-05,2]
[344468113,1733505014273,11972.4,5e-05,2]
[344468114,1733505014296,10000.0,5e-05,2]
[344468115,1733505014318,10000.0,5e-05,2]
[344468116,1733505014340,10000.0,5e-05,2]
[344468117,1733505014361,10000.0,5e-05,2]
[344468118,1733505014383,10000.0,5e-05,2]
[344468119,1733505014405,10000.0,5e-05,2]
[344468120,1733505014425,10000.0,5e-05,2]
[344468121,1733505014450,10000.0,5e-05,2]
[344468122,1733505014472,8027.6,5e-05,2]
[344468123,1733505032289,-370.85335054,7.677e-05,2]
[344468124,1733505032299,-1172.07972516,7.677e-05,2]
[344468125,1733505032308,-200.0,7.677e-05,2]
[344468126,1733505032317,-200.0,7.678e-05,2]
[344468127,1733505032327,-200.0,7.678e-05,2]
[344468128,1733505032336,-200.0,7.678e-05,2]
[344468129,1733505032345,-200.0,7.679e-05,2]
[344468130,1733505032354,-200.0,7.679e-05,2]
[344468131,1733505032364,-494.47113405,7.679e-05,2]
[344468132,1733505032374,-879.05979387,7.679e-05,2]
[344468133,1733505032383,-200.0,7.679e-05,2]
[344468134,1733505032393,-494.47113405,7.679e-05,2]
[344468135,1733505032403,-659.2948454,7.68e-05,2]
[344468136,1733505032412,-200.0,7.68e-05,2]
[344468137,1733505032421,-200.0,7.68e-05,2]
[344468138,1733505032431,-1172.07972516,7.68e-05,2]
[344468139,1733505032440,-200.0,7.68e-05,2]
[344468140,1733505032450,-370.85335054,7.68e-05,2]
[344468141,1733505032461,-879.05979387,7.68e-05,2]
[344468142,1733505032470,-1562.77296688,7.681e-05,2]
[344468143,1733505032480,-200.0,7.681e-05,2]
[344468144,1733505032489,-879.05979387,7.681e-05,2]
[344468145,1733505032498,-200.0,7.682e-05,2]
[344468146,1733505032508,-200.0,7.682e-05,2]
[344468147,1733505032517,-494.47113405,7.682e-05,2]
[344468148,1733505032527,-208.60500968,7.683e-05,2]
[344468149,1733505032536,-2058.65562253,7.683e-05,2]
[344468150,1733505032545,-1172.07972516,7.683e-05,2]
[344468151,1733505032555,-2058.65562253,7.684e-05,2]
[344468152,1733505032565,-200.0,7.684e-05,2]
[344468153,1733505032574,-494.47113405,7.684e-05,2]
[344468154,1733505032584,-370.85335054,7.684e-05,2]
[344468155,1733505032593,-200.0,7.684e-05,2]
[344468156,1733505032603,-108.15278807,7.685e-05,2]
[344468157,1733505032624,-91.84721193,7.685e-05,2]
[344468158,1733505032633,-200.0,7.685e-05,2]
[344468159,1733505032643,-200.0,7.685e-05,2]
[344468160,1733505032653,-659.2948454,7.685e-05,2]
[344468161,1733505032663,-1562.77296688,7.686e-05,2]
[344468162,1733505032672,-200.0,7.686e-05,2]
[344468163,1733505032682,-1031.60782964,7.686e-05,2]
[344468164,1733505032720,-531.16513724,7.686e-05,2]
[344468165,1733505032730,-200.0,7.686e-05,2]
[344468166,1733505032739,-200.0,7.686e-05,2]
[344468167,1733505032748,-0.69437376,7.687e-05,2]
[344468168,1733505032759,-199.30562624,7.687e-05,2]
[344468169,1733505032768,-879.05979387,7.688e-05,2]
[344468170,1733505032778,-278.14001291,7.688e-05,2]
[344468171,1733505032787,-1562.77296688,7.688e-05,2]
[344468172,1733505032796,-2058.65562253,7.688e-05,2]
[344468173,1733505032805,-208.60500968,7.688e-05,2]
[344468174,1733505032815,-659.2948454,7.688e-05,2]
[344468175,1733505032825,-208.60500968,7.688e-05,2]
[344468176,1733505032834,-200.0,7.689e-05,2]
[344468177,1733505032843,-200.0,7.689e-05,2]
[344468178,1733505032853,-1562.77296688,7.689e-05,2]
[344468179,1733505032862,-278.14001291,7.689e-05,2]
[344468180,1733505032871,-200.0,7.689e-05,2]
[344468181,1733505032880,-200.0,7.689e-05,2]
[344468182,1733505032890,-208.60500968,7.689e-05,2]
[344468183,1733505032899,-200.0,7.69e-05,2]
[344468184,1733505032909,-1562.77296688,7.69e-05,2]
[344468185,1733505032918,-2058.65562253,7.69e-05,2]
[344468186,1733505032927,-200.0,7.69e-05,2]
[344468187,1733505032936,-1172.07972516,7.69e-05,2]
[344468188,1733505032945,-200.0,7.69e-05,2]
[344468189,1733505032956,-200.0,7.69e-05,2]
[344468190,1733505032966,-278.14001291,7.691e-05,2]
[344468191,1733505032975,-200.0,7.691e-05,2]
[344468192,1733505032984,-659.2948454,7.691e-05,2]
[344468193,1733505032993,-370.85335054,7.691e-05,2]
[344468194,1733505033004,-879.05979387,7.692e-05,2]
[344468195,1733505033015,-200.0,7.692e-05,2]
[344468196,1733505033024,-200.0,7.692e-05,2]
[344468197,1733505033033,-1172.07972516,7.692e-05,2]
[344468198,1733505033043,-200.0,7.692e-05,2]
[344468199,1733505033052,-2058.65562253,7.692e-05,2]
[344468200,1733505033062,-370.85335054,7.693e-05,2]
[344468201,1733505033071,-200.0,7.693e-05,2]
[344468202,1733505033080,-200.0,7.693e-05,2]
[344468203,1733505033090,-208.60500968,7.693e-05,2]
[344468204,1733505033103,-200.0,7.693e-05,2]
[344468205,1733505033115,-200.0,7.693e-05,2]
[344468206,1733505033125,-2058.65562253,7.694e-05,2]
[344468207,1733505033135,-278.14001291,7.694e-05,2]
[344468208,1733505033147,-200.0,7.694e-05,2]
[344468209,1733505033157,-200.0,7.695e-05,2]
[344468210,1733505033166,-200.0,7.695e-05,2]
[344468211,1733505033175,-200.0,7.696e-05,2]
[344468212,1733505033185,-370.85335054,7.696e-05,2]
[344468213,1733505033195,-494.47113405,7.696e-05,2]
[344468214,1733505033206,-200.0,7.697e-05,2]
[344468215,1733505033216,-208.60500968,7.697e-05,2]
[344468216,1733505033226,-200.0,7.698e-05,2]
[344468217,1733505033236,-200.0,7.698e-05,2]
[344468218,1733505033246,-200.0,7.698e-05,2]
[344468219,1733505033255,-200.0,7.698e-05,2]
[344468220,1733505033264,-879.05979387,7.699e-05,2]
[344468221,1733505033274,-494.47113405,7.699e-05,2]
[344468222,1733505033283,-200.0,7.699e-05,2]
[344468223,1733505033293,-278.14001291,7.699e-05,2]
[344468224,1733505033302,-278.14001291,7.699e-05,2]
[344468225,1733505033311,-200.0,7.699e-05,2]
[344468226,1733505033321,-200.0,7.7e-05,2]
[344468227,1733505033330,-659.2948454,7.7e-05,2]
[344468228,1733505033340,-659.2948454,7.7e-05,2]
[344468229,1733505033349,-200.0,7.7e-05,2]
[344468230,1733505033359,-1172.07972516,7.7e-05,2]
[344468231,1733505033369,-200.0,7.7e-05,2]
[344468232,1733505033378,-250.0,8.19e-05,2]
[344468233,1733505033388,-1268.45,8.192e-05,2]
[344468234,1733505033399,-2701.04,8.219e-05,2]
[344468235,1733505033408,-1000.0,8.291e-05,2]
[344468236,1733505033418,-205.03691736,8.291e-05,2]
[344468237,1733505033427,-250.0,8.295e-05,2]
[344468238,1733505033436,-679.48,8.305e-05,2]
[344468239,1733505033445,-150.0,8.317e-05,2]
[344468240,1733505033456,-2000.0,8.337e-05,2]
[344468241,1733505033465,-1500.0,8.337e-05,2]
[344468242,1733505033474,-200.0,8.414e-05,2]
[344468243,1733505033483,-1268.45,8.495e-05,2]
[344468244,1733505033493,-150.0,8.571e-05,2]
[344468245,1733505033503,-1098.0,8.571e-05,2]
[344468246,1733505033512,-153.92,8.598e-05,2]
[344468247,1733505033522,-2000.0,8.646e-05,2]
[344468248,1733505033533,-1268.45,8.798e-05,2]
[344468249,1733505033543,-166.67,8.807e-05,2]
[344468250,1733505033553,-1184.152,8.829e-05,2]
[344468251,1733505033563,-2000.0,8.954e-05,2]
[344468252,1733505033573,-364.16,8.957e-05,2]
[344468253,1733505033583,-364.16,8.957e-05,2]
[344468254,1733505033592,-364.16,8.957e-05,2]
[344468255,1733505033603,-364.16,8.957e-05,2]
[344468256,1733505033613,-364.16,8.957e-05,2]
[344468257,1733505033623,-720.02,8.957e-05,2]
[344468258,1733505033632,-865.31,9.041e-05,2]
[344468259,1733505033643,-1268.45,9.101e-05,2]
[344468260,1733505033653,-632.852,9.11e-05,2]
[344468261,1733505033663,-504.26,9.11e-05,2]
[344468262,1733505033673,-1042.64668519,9.156e-05,5]
[344468263,1733505033687,-936.23331481,9.156e-05,5]
[344468264,1733505033696,-150.39,9.178e-05,2]
[344468265,1733505033707,-300.0,9.178e-05,2]
[344468266,1733505033716,-300.0,9.178e-05,2]
[344468267,1733505033726,-69164.37915077,9.188e-05,5]
[344468268,1733505033747,-26619.09430853,9.188e-05,5]
[344468269,1733505033784,-3954.55023432,9.188e-05,5]
[344468271,1733505038109,-9315.34494158,9.188e-05,5]
[344468272,1733505038120,-16265.05619584,9.188e-05,5]
[344468273,1733505038132,-1979.662167,9.188e-05,5]
[344468274,1733505038145,-1878.83942715,9.188e-05,5]
[344468275,1733505038182,-10000.0,9.188e-05,5]
[344468276,1733505038226,-582.27999921,9.188e-05,5]
[344468277,1733505038286,-5815.16,9.188e-05,5]
[344468278,1733505038346,-853.75996311,9.188e-05,5]